fUSD/lending_fUSD_20251128
["ID","MTS","AMOUNT","RATE_DAILY","PERIOD"]
[395013536,1764329452548,-150.0,0.00034999,20]
[395013537,1764329452560,-269.60030883,0.00035,120]
[395013538,1764329452570,-237.15203659,0.00035,120]
[395013539,1764329452579,-166.03540197,0.00035,120]
[395013540,1764329452588,-183.30538817,0.00035,120]
[395013541,1764329452597,-254.91945093,0.00035,120]
[395013542,1764329452608,-243.17,0.00035,30]
[395013543,1764329452617,-254715.7664329,0.00035,3]
[395013544,1764329452626,-1400.0,0.00035046,2]
[395013545,1764329452636,-533.88981491,0.00035046,2]
[395013546,1764329452645,-307.19930018,0.00035058,2]
[395013547,1764329452654,-103976.60647626,0.000351,3]
[395013548,1764329452664,-166.61414469,0.000351,2]
[395013549,1764329452673,-256.9,0.000352,14]
[395013550,1764329452683,-164.71328149,0.00035233,30]
[395013551,1764329452692,-351.51,0.00035249,120]
[395013552,1764329452701,-341.64085487,0.00035456,2]
[395013553,1764329452710,-256.30201701,0.00035485,26]
[395013554,1764329452719,-1400.0,0.00035594,2]
[395013555,1764329452728,-553.64373807,0.00035594,2]
[395013556,1764329452737,-1400.0,0.00035615,42]
[395013557,1764329452745,-500.0,0.00035615,42]
[395013558,1764329452754,-151.0,0.00035615,42]
[395013559,1764329452764,-496.47127164,0.00035615,42]
[395013560,1764329452772,-8260.13072239,0.00035615,42]
[395013561,1764329452781,-500.0,0.00035615,42]
[395013562,1764329452790,-623.58710448,0.00035615,42]
[395013563,1764329452798,-151.0,0.00035615,42]
[395013564,1764329452807,-500.0,0.00035615,42]
[395013565,1764329452816,-250.0,0.00035615,42]
[395013566,1764329452824,-500.0,0.00035615,42]
[395013567,1764329452833,-500.0,0.00035615,42]
[395013568,1764329452841,-500.0,0.00035615,42]
[395013569,1764329452850,-250.0,0.00035615,42]
[395013570,1764329452859,-500.0,0.00035616,60]
[395013571,1764329452867,-448.93,0.00035616,13]
[395013572,1764329452877,-600.0,0.00035616,30]
[395013573,1764329452885,-1000.0,0.00035744,2]
[395013574,1764329452895,-500.0,0.00035753,60]
[395013575,1764329452903,-257.91778498,0.00035867,2]
[395013576,1764329452913,-248.71395,0.00035888,30]
[395013577,1764329452922,-500.0,0.0003589,60]
[395013578,1764329452931,-199.0,0.0003589,7]
[395013579,1764329452941,-600.0,0.0003589,30]
[395013580,1764329452951,-1083.43,0.00036,30]
[395013581,1764329452962,-269.60030883,0.00036,120]
[395013582,1764329452971,-237.15203659,0.00036,120]
[395013583,1764329452980,-183.30538817,0.00036,120]
[395013584,1764329452990,-254.91945093,0.00036,120]
[395013585,1764329452999,-243.17,0.00036,30]
[395013586,1764329453009,-200.0,0.00036,120]
[395013587,1764329453020,-154.88502458,0.00036,2]
[395013588,1764329453030,-595.74769993,0.00036027,60]
[395013589,1764329453040,-248.71395,0.00036088,30]
[395013590,1764329453051,-702.31,0.00036103,2]
[395013591,1764329453061,-702.31,0.00036103,2]
[395013592,1764329453072,-702.31,0.00036103,2]
[395013593,1764329453082,-702.31,0.00036103,2]
[395013594,1764329453092,-702.31,0.00036103,2]
[395013595,1764329453101,-702.31,0.00036103,2]
[395013596,1764329453111,-702.31,0.00036103,2]
[395013597,1764329453121,-702.31,0.00036103,2]
[395013598,1764329453130,-702.31,0.00036103,2]
[395013599,1764329453140,-702.31,0.00036103,2]
[395013600,1764329453150,-702.31,0.00036103,2]
[395013601,1764329453160,-702.31,0.00036103,2]
[395013602,1764329453170,-1404.35,0.00036103,2]
[395013603,1764329453180,-702.31,0.00036103,2]
[395013604,1764329453190,-702.31,0.00036103,2]
[395013605,1764329453204,-702.31,0.00036103,2]
[395013606,1764329453214,-160.35,0.00036126,30]
[395013607,1764329453224,-574.12855637,0.00036142,2]
[395013608,1764329453234,-600.0,0.00036164,30]
[395013609,1764329453353,-2472.94,0.00036184,2]
[395013610,1764329453364,-307.19930018,0.00036227,2]
[395013611,1764329453375,-465.15,0.00036241,120]
[395013612,1764329453385,-248.71395,0.00036288,30]
[395013613,1764329453396,-256.30201701,0.00036387,28]
[395013614,1764329453406,-199.0,0.00036438,8]
[395013615,1764329453416,-700.0,0.00036438,30]
[395013616,1764329453426,-248.71395,0.00036488,30]
[395013617,1764329453436,-256.9,0.000365,14]
[395013618,1764329453446,-341.64085487,0.00036544,2]
[395013619,1764329453458,-166.61414469,0.0003655,2]
[395013620,1764329453467,-189.04225863,0.00036571,2]
[395013621,1764329453476,-186.0,0.00036597,2]
[395013622,1764329453486,-248.71395,0.00036688,30]
[395013623,1764329453496,-595.37131296,0.0003669,2]
[395013624,1764329453506,-1400.0,0.00036719,30]
[395013625,1764329453515,-500.0,0.00036719,30]
[395013626,1764329453525,-151.0,0.00036719,30]
[395013627,1764329453535,-7965.41053268,0.00036719,30]
[395013628,1764329453544,-478.75725327,0.00036719,30]
[395013629,1764329453554,-500.0,0.00036719,30]
[395013630,1764329453568,-601.3376128,0.00036719,30]
[395013631,1764329453582,-151.0,0.00036719,30]
[395013632,1764329453592,-500.0,0.00036719,30]
[395013633,1764329453602,-298.44063179,0.00036719,30]
[395013634,1764329453612,-250.0,0.00036719,30]
[395013635,1764329453621,-500.0,0.00036719,30]
[395013636,1764329453633,-500.0,0.00036719,30]
[395013637,1764329453643,-500.0,0.00036719,30]
[395013638,1764329453653,-250.0,0.00036719,30]
[395013639,1764329453663,-1083.43,0.0003672,30]
[395013640,1764329453673,-174.21339431,0.00036771,120]
[395013641,1764329453683,-175.71685491,0.00036771,120]
[395013642,1764329453694,-170.81518652,0.00036771,120]
[395013643,1764329453703,-571.76618853,0.00036771,120]
[395013644,1764329453713,-186.0,0.0003679,2]
[395013645,1764329453723,-1635.99174329,0.00036824,2]
[395013646,1764329453732,-486.60165001,0.0003683,2]
[395013647,1764329453742,-788153.18222735,0.00036847,2]
[395013648,1764329453751,-173.62435858,0.00036854,2]
[395013649,1764329453761,-408.7332426,0.00036859,2]
[395013650,1764329453771,-6446.14040237,0.00036876,2]
[395013651,1764329453782,-1773.27393922,0.00036882,2]
[395013652,1764329453791,-248.71395,0.00036888,30]
[395013653,1764329453801,-150.0,0.000369,2]
[395013654,1764329453810,-236.55,0.000369,2]
[395013655,1764329453820,-243.17,0.000369,30]
[395013656,1764329453830,-199.0,0.00036986,9]
[395013657,1764329453840,-702.31,0.00037061,2]
[395013658,1764329453850,-248.71395,0.00037088,30]
[395013659,1764329453860,-186.0,0.0003709,7]
[395013660,1764329453870,-182.0,0.00037164,2]
[395013661,1764329453880,-182.0,0.0003723,7]
[395013662,1764329453889,-267.46074303,0.00037236,2]
[395013663,1764329453899,-599.60298507,0.00037237,2]
[395013664,1764329453908,-670.58624095,0.00037237,2]
[395013665,1764329453918,-617.40005154,0.00037238,2]
[395013666,1764329453927,-186.0,0.00037254,2]
[395013667,1764329453937,-702.31,0.0003726,2]
[395013668,1764329453947,-182.0,0.00037266,2]
[395013669,1764329453964,-207.36177663,0.00037272,120]
[395013670,1764329453980,-248.71395,0.00037288,30]
[395013671,1764329453989,-256.30201701,0.0003729,29]
[395013672,1764329454006,-182.0,0.00037294,2]
[395013673,1764329454018,-256.9,0.000373,14]
[395013674,1764329454028,-186.0,0.00037365,120]
[395013675,1764329454037,-307.19930018,0.00037395,2]
[395013676,1764329454047,-182.0,0.00037401,2]
[395013677,1764329454056,-4471.0,0.00037449,120]
[395013678,1764329454066,-182.0,0.00037481,2]
[395013679,1764329454076,-248.71395,0.00037488,30]
[395013680,1764329454085,-182.0,0.00037497,2]
[395013681,1764329454095,-199.0,0.00037534,10]
[395013682,1764329454105,-243.17,0.000376,30]
[395013683,1764329454115,-341.64085487,0.00037633,2]
[395013684,1764329454125,-248.71395,0.00037688,30]
[395013685,1764329454134,-182.0,0.00037723,2]
[395013686,1764329454144,-166.67,0.00037738,2]
[395013687,1764329454153,-173.8557629,0.00037763,30]
[395013688,1764329454162,-150.0,0.00037778,30]
[395013689,1764329454172,-640.24385345,0.00037786,2]
[395013690,1764329454182,-1400.0,0.00037857,30]
[395013691,1764329454191,-558.6575319,0.00037857,30]
[395013692,1764329454201,-500.0,0.00037857,30]
[395013693,1764329454212,-557.5788265,0.00037857,30]
[395013694,1764329454221,-151.0,0.00037857,30]
[395013695,1764329454230,-7681.20591386,0.00037857,30]
[395013696,1764329454239,-461.67526834,0.00037857,30]
[395013697,1764329454248,-500.0,0.00037857,30]
[395013698,1764329454258,-579.88197956,0.00037857,30]
[395013699,1764329454267,-151.0,0.00037857,30]
[395013700,1764329454276,-500.0,0.00037857,30]
[395013701,1764329454285,-250.0,0.00037857,30]
[395013702,1764329454295,-250.0,0.00037857,30]
[395013703,1764329454304,-546.80509455,0.00037857,30]
[395013704,1764329454313,-500.0,0.00037857,30]
[395013705,1764329454323,-500.0,0.00037857,30]
[395013706,1764329454332,-500.0,0.00037857,30]
[395013707,1764329454342,-250.0,0.00037857,30]
[395013708,1764329454351,-506.81143776,0.00037857,30]
[395013709,1764329454360,-506.81143776,0.00037857,30]
[395013710,1764329454369,-506.81143776,0.00037857,30]
[395013711,1764329454379,-182.0,0.00037882,2]
[395013712,1764329454388,-248.71395,0.00037888,30]
[395013713,1764329454397,-1000.0,0.000379,120]
[395013714,1764329454406,-1000.0,0.000379,120]
[395013715,1764329454415,-1000.0,0.000379,120]
[395013716,1764329454424,-1000.0,0.000379,120]
[395013717,1764329454433,-1000.0,0.000379,120]
[395013718,1764329454443,-900.0,0.000379,120]
[395013719,1764329454452,-150.0,0.000379,2]
[395013720,1764329454461,-4471.0,0.00037905,2]
[395013721,1764329454470,-255.05973414,0.00037923,2]
[395013722,1764329454479,-182.0,0.00037928,2]
[395013723,1764329454489,-150.0,0.00037945,2]
[395013724,1764329454498,-1213.19,0.00037945,2]
[395013725,1764329454507,-177.82,0.00037945,2]
[395013726,1764329454515,-169.94,0.00037945,2]
[395013727,1764329454524,-150.0,0.00037945,2]
[395013728,1764329454533,-150.0,0.00037945,2]
[395013729,1764329454542,-150.0,0.00037945,2]
[395013730,1764329454551,-551.8,0.00037945,2]
[395013731,1764329454563,-1000.0,0.0003795,120]
[395013732,1764329454572,-1000.0,0.0003795,120]
[395013733,1764329454581,-1000.0,0.0003795,120]
[395013734,1764329454590,-1000.0,0.0003795,120]
[395013735,1764329454599,-1000.0,0.0003795,120]
[395013736,1764329454608,-1000.0,0.0003799,120]
[395013737,1764329454616,-1000.0,0.0003799,120]
[395013738,1764329454625,-1000.0,0.0003799,120]
[395013739,1764329454634,-1000.0,0.0003799,120]
[395013740,1764329454643,-1000.0,0.0003799,120]
[395013741,1764329454651,-1000.0,0.0003799,120]
[395013742,1764329454660,-1000.0,0.0003799,120]
[395013743,1764329454669,-1000.0,0.0003799,120]
[395013744,1764329454678,-500.0,0.00038,7]
[395013745,1764329454687,-500.0,0.00038,7]
[395013746,1764329454697,-2000.0,0.00038,120]
[395013747,1764329454709,-200.0,0.00038,120]
[395013748,1764329454719,-294.55957459,0.00038,120]
[395013749,1764329454728,-166.61414469,0.00038,2]
[395013750,1764329454738,-513.0,0.00038004,120]
[395013751,1764329454747,-179.0,0.00038059,30]
[395013752,1764329454756,-199.0,0.00038082,11]
[395013753,1764329454766,-248.71395,0.00038088,30]
[395013754,1764329454775,-182.0,0.00038097,2]
[395013755,1764329454784,-256.9,0.000381,14]
[395013756,1764329454794,-150.0,0.00038157,2]
[395013757,1764329454803,-207.36177663,0.00038185,120]
[395013758,1764329454813,-256.30201701,0.00038192,30]
[395013759,1764329454822,-182.0,0.00038251,2]
[395013760,1764329454832,-248.71395,0.00038288,30]
[395013761,1764329454841,-243.17,0.000383,30]
[395013762,1764329454850,-182.0,0.00038317,2]
[395013763,1764329454860,-663.93287602,0.00038334,2]
[395013764,1764329454870,-500.0,0.00038356,2]
[395013765,1764329454880,-500.0,0.00038356,15]
[395013766,1764329454889,-500.0,0.00038356,2]
[395013767,1764329454898,-3575.79,0.00038356,2]
[395013768,1764329454907,-300.0,0.00038356,2]
[395013769,1764329454916,-500.0,0.00038356,2]
[395013770,1764329454925,-774.85,0.00038356,2]
[395013771,1764329454934,-500.0,0.00038356,2]
[395013772,1764329454943,-300.0,0.00038356,2]
[395013773,1764329454952,-151.0,0.00038356,120]
[395013774,1764329454961,-254.116202,0.00038356,120]
[395013775,1764329454970,-195.1054952,0.00038356,2]
[395013776,1764329454979,-500.0,0.00038356,14]
[395013777,1764329454988,-500.0,0.00038356,14]
[395013778,1764329454996,-500.0,0.00038356,14]
[395013779,1764329455006,-500.0,0.00038356,14]
[395013780,1764329455100,-500.0,0.00038356,14]
[395013781,1764329455109,-500.0,0.00038356,14]
[395013782,1764329455118,-500.0,0.00038356,14]
[395013783,1764329455126,-500.0,0.00038356,14]
[395013784,1764329455135,-500.0,0.00038356,14]
[395013785,1764329455144,-500.0,0.00038356,14]
[395013786,1764329455153,-500.0,0.00038356,14]
[395013787,1764329455162,-500.0,0.00038356,14]
[395013788,1764329455171,-459.79330824,0.00038356,14]
[395013789,1764329455179,-500.0,0.00038356,14]
[395013790,1764329455188,-401.23247152,0.00038356,14]
[395013791,1764329455197,-500.0,0.00038356,14]
[395013792,1764329455207,-500.0,0.00038356,14]
[395013793,1764329455217,-500.0,0.00038356,14]
[395013794,1764329455226,-500.0,0.00038356,14]
[395013795,1764329455235,-500.0,0.00038356,14]
[395013796,1764329455244,-500.0,0.00038356,14]
[395013797,1764329455253,-500.0,0.00038356,14]
[395013798,1764329455262,-500.0,0.00038356,14]
[395013799,1764329455271,-150.0,0.00038356,5]
[395013800,1764329455280,-182.0,0.00038376,2]
[395013801,1764329455289,-182.0,0.00038479,120]
[395013802,1764329455298,-248.71395,0.00038488,30]
[395013803,1764329455308,-2400.0,0.000385,120]
[395013804,1764329455317,-307.19930018,0.00038563,2]
[395013805,1764329455326,-182.0,0.00038601,2]
[395013806,1764329455335,-277.35679052,0.00038605,2]
[395013807,1764329455344,-150.0,0.0003861,30]
[395013808,1764329455353,-150.0,0.0003861,30]
[395013809,1764329455362,-500.0,0.0003863,2]
[395013810,1764329455371,-500.0,0.0003863,15]
[395013811,1764329455381,-500.0,0.0003863,2]
[395013812,1764329455391,-199.0,0.0003863,12]
[395013813,1764329455400,-3575.79,0.0003863,2]
[395013814,1764329455409,-300.0,0.0003863,2]
[395013815,1764329455418,-500.0,0.0003863,2]
[395013816,1764329455428,-774.85,0.0003863,2]
[395013817,1764329455437,-500.0,0.0003863,2]
[395013818,1764329455446,-300.0,0.0003863,2]
[395013819,1764329455456,-248.71395,0.00038688,30]
[395013820,1764329455466,-500.0,0.000387,120]
[395013821,1764329455475,-341.64085487,0.00038722,2]
[395013822,1764329455484,-173.62435858,0.00038877,2]
[395013823,1764329455493,-715.93149903,0.00038882,2]
[395013824,1764329455503,-256.9,0.000389,14]
[395013825,1764329455512,-500.0,0.00038904,2]
[395013826,1764329455521,-500.0,0.00038904,15]
[395013827,1764329455531,-500.0,0.00038904,2]
[395013828,1764329455541,-3575.79,0.00038904,2]
[395013829,1764329455550,-300.0,0.00038904,2]
[395013830,1764329455564,-334.17629797,0.00038904,2]
[395013831,1764329455574,-774.85,0.00038904,2]
[395013832,1764329455583,-500.0,0.00038904,2]
[395013833,1764329455592,-300.0,0.00038904,2]
[395013834,1764329455603,-2092.314224,0.0003895,2]
[395013835,1764329455612,-2000.0,0.00039,120]
[395013836,1764329455621,-1800.0,0.00039,120]
[395013837,1764329455632,-243.17,0.00039,30]
[395013838,1764329455641,-119245.13370339,0.00039,2]
[395013839,1764329455650,-248.71395,0.00039088,30]
[395013840,1764329455659,-256.30201701,0.00039095,30]
[395013841,1764329455669,-207.36177663,0.00039098,120]
[395013842,1764329455678,-500.0,0.00039178,2]
[395013843,1764329455687,-500.0,0.00039178,15]
[395013844,1764329455697,-307.86903651,0.00039178,2]
[395013845,1764329455707,-199.0,0.00039178,13]
[395013846,1764329455717,-3575.79,0.00039178,2]
[395013847,1764329455727,-300.0,0.00039178,2]
[395013848,1764329455736,-774.85,0.00039178,2]
[395013849,1764329455745,-500.0,0.00039178,2]
[395013850,1764329455754,-348.36580812,0.00039178,2]
[395013851,1764329455763,-500.0,0.00039178,120]
[395013852,1764329455772,-500.0,0.00039186,120]
[395013853,1764329455781,-500.0,0.00039193,120]
[395013854,1764329455790,-500.0,0.00039201,120]
[395013855,1764329455800,-500.0,0.00039209,120]
[395013856,1764329455809,-500.0,0.00039216,120]
[395013857,1764329455818,-500.0,0.00039224,120]
[395013858,1764329455827,-500.0,0.00039231,120]
[395013859,1764329455836,-500.0,0.00039239,120]
[395013860,1764329455846,-500.0,0.00039247,120]
[395013861,1764329455855,-500.0,0.00039254,120]
[395013862,1764329455864,-500.0,0.00039262,120]
[395013863,1764329455873,-500.0,0.00039269,120]
[395013864,1764329455882,-500.0,0.00039277,120]
[395013865,1764329455891,-500.0,0.00039285,120]
[395013866,1764329455900,-248.71395,0.00039288,30]
[395013867,1764329455909,-500.0,0.00039292,120]
[395013868,1764329455920,-500.0,0.000393,120]
[395013869,1764329455928,-500.0,0.00039307,120]
[395013870,1764329455938,-500.0,0.00039315,120]
[395013871,1764329455947,-165.97,0.00039316,120]
[395013872,1764329455956,-154.12,0.00039316,120]
[395013873,1764329455966,-150.15,0.00039316,120]
[395013874,1764329455975,-500.0,0.00039323,120]
[395013875,1764329455984,-500.0,0.0003933,120]
[395013876,1764329455993,-500.0,0.00039338,120]
[395013877,1764329456002,-500.0,0.00039346,120]
[395013878,1764329456012,-500.0,0.00039353,120]
[395013879,1764329456021,-500.0,0.00039361,120]
[395013880,1764329456030,-500.0,0.00039368,120]
[395013881,1764329456039,-500.0,0.00039376,120]
[395013882,1764329456048,-500.0,0.00039384,120]
[395013883,1764329456057,-500.0,0.00039391,120]
[395013884,1764329456067,-500.0,0.00039399,120]
[395013885,1764329456076,-300.281906,0.000394,95]
[395013886,1764329456085,-500.0,0.00039406,120]
[395013887,1764329456095,-500.0,0.00039414,120]
[395013888,1764329456103,-165.97,0.00039416,120]
[395013889,1764329456112,-154.12,0.00039416,120]
[395013890,1764329456122,-150.15,0.00039416,120]
[395013891,1764329456132,-500.0,0.00039422,120]
[395013892,1764329456141,-500.0,0.00039429,120]
[395013893,1764329456150,-500.0,0.00039437,120]
[395013894,1764329456159,-500.0,0.00039444,120]
[395013895,1764329456168,-166.61414469,0.0003945,2]
[395013896,1764329456177,-511.29152602,0.00039452,2]
[395013897,1764329456186,-265.3118944,0.00039452,15]
[395013898,1764329456195,-3575.79,0.00039452,2]
[395013899,1764329456204,-300.0,0.00039452,2]
[395013900,1764329456213,-774.85,0.00039452,2]
[395013901,1764329456222,-500.0,0.00039452,2]
[395013902,1764329456230,-500.0,0.00039452,120]
[395013903,1764329456239,-500.0,0.0003946,120]
[395013904,1764329456248,-500.0,0.00039467,120]
[395013905,1764329456258,-500.0,0.00039475,120]
[395013906,1764329456267,-500.0,0.00039482,120]
[395013907,1764329456276,-248.71395,0.00039488,30]
[395013908,1764329456286,-500.0,0.0003949,120]
[395013909,1764329456295,-500.0,0.00039498,120]
[395013910,1764329456304,-22146.70103047,0.000395,7]
[395013911,1764329456314,-988.11,0.000395,60]
[395013912,1764329456323,-500.0,0.00039505,120]
[395013913,1764329456332,-500.0,0.00039513,120]
[395013914,1764329456342,-165.97,0.00039516,120]
[395013915,1764329456352,-154.12,0.00039516,120]
[395013916,1764329456361,-150.15,0.00039516,120]
[395013917,1764329456370,-500.0,0.00039521,120]
[395013918,1764329456380,-500.0,0.00039528,120]
[395013919,1764329456390,-500.0,0.00039536,120]
[395013920,1764329456399,-500.0,0.00039543,120]
[395013921,1764329456408,-500.0,0.00039551,120]
[395013922,1764329456417,-500.0,0.00039559,120]
[395013923,1764329456427,-500.0,0.00039566,120]
[395013924,1764329456436,-500.0,0.00039574,120]
[395013925,1764329456445,-500.0,0.00039581,120]
[395013926,1764329456455,-500.0,0.00039589,120]
[395013927,1764329456464,-500.0,0.00039597,120]
[395013928,1764329456473,-500.0,0.00039604,120]
[395013929,1764329456482,-500.0,0.00039612,120]
[395013930,1764329456492,-165.97,0.00039616,120]
[395013931,1764329456501,-154.12,0.00039616,120]
[395013932,1764329456510,-150.15,0.00039616,120]
[395013933,1764329456519,-500.0,0.00039619,120]
[395013934,1764329456528,-500.0,0.00039627,120]
[395013935,1764329456537,-500.0,0.00039635,120]
[395013936,1764329456628,-500.0,0.00039642,120]
[395013937,1764329456639,-500.0,0.0003965,120]
[395013938,1764329456648,-508.75,0.00039654,2]
[395013939,1764329456657,-500.0,0.00039658,120]
[395013940,1764329456666,-500.0,0.00039665,120]
[395013941,1764329456675,-500.0,0.00039673,120]
[395013942,1764329456684,-160.37359926,0.00039676,7]
[395013943,1764329456694,-500.0,0.0003968,120]
[395013944,1764329456705,-500.0,0.00039688,120]
[395013945,1764329456714,-248.71395,0.00039688,30]
[395013946,1764329456723,-500.0,0.00039696,120]
[395013947,1764329456733,-256.9,0.000397,14]
[395013948,1764329456742,-156.6753753,0.000397,2]
[395013949,1764329456752,-371.63452748,0.000397,2]
[395013950,1764329456761,-500.0,0.00039703,120]
[395013951,1764329456770,-500.0,0.00039711,120]
[395013952,1764329456779,-165.97,0.00039716,120]
[395013953,1764329456788,-154.12,0.00039716,120]
[395013954,1764329456801,-150.15,0.00039716,120]
[395013955,1764329456810,-500.0,0.00039718,120]
[395013956,1764329456819,-199.0,0.00039726,14]
[395013957,1764329456828,-3575.79,0.00039726,2]
[395013958,1764329456837,-300.0,0.00039726,2]
[395013959,1764329456845,-774.85,0.00039726,2]
[395013960,1764329456855,-589.8223975,0.00039726,2]
[395013961,1764329456863,-542.47233509,0.00039726,120]
[395013962,1764329456872,-250.0,0.00039726,5]
[395013963,1764329456881,-307.19930018,0.00039732,2]
[395013964,1764329456890,-150.0,0.00039748,7]
[395013965,1764329456899,-1007.22153315,0.0003977,2]
[395013966,1764329456908,-246.81207678,0.0003979,2]
[395013967,1764329456917,-300.0,0.00039799,10]
[395013968,1764329456926,-300.0,0.00039799,10]
[395013969,1764329456935,-1000000.0,0.000398,2]
[395013970,1764329456944,-300.0,0.0003981,10]
[395013971,1764329456953,-341.64085487,0.00039811,2]
[395013972,1764329456963,-166.67,0.00039814,2]
[395013973,1764329456971,-300.0,0.00039815,10]
[395013974,1764329456980,-179.85957124,0.00039815,10]
[395013975,1764329456989,-165.97,0.00039816,120]
[395013976,1764329456998,-154.12,0.00039816,120]
[395013977,1764329457009,-150.15,0.00039816,120]
[395013978,1764329457019,-150.0,0.00039817,7]
[395013979,1764329457028,-500.0,0.00039863,30]
[395013980,1764329457038,-248.71395,0.00039888,30]
[395013981,1764329457048,-101524.44676462,0.000399,3]
[395013982,1764329457058,-712.19387068,0.000399,2]
[395013983,1764329457068,-165.97078069,0.00039916,120]
[395013984,1764329457078,-154.12,0.00039916,120]
[395013985,1764329457088,-150.15,0.00039916,120]
[395013986,1764329457100,-150.0,0.00039938,7]
[395013987,1764329457110,-287.61899177,0.00039974,2]
[395013988,1764329457120,-565.71691614,0.00039976,2]
[395013989,1764329457131,-695.39793187,0.00039976,2]
[395013990,1764329457140,-300.0,0.0003998,2]
[395013991,1764329457149,-696.21,0.00039996,2]
[395013992,1764329457157,-256.30201701,0.00039997,30]
[395013993,1764329457166,-150.0,0.00039998,120]
[395013994,1764329457175,-300.0,0.00039999,10]
[395013995,1764329457184,-300.0,0.00039999,10]
[395013996,1764329457193,-50000.0,0.0004,30]
[395013997,1764329457202,-50000.0,0.0004,40]
[395013998,1764329457211,-499.0,0.0004,2]
[395013999,1764329457220,-1000.0,0.0004,120]
[395014000,1764329457229,-500.0,0.0004,14]
[395014001,1764329457238,-155.23325726,0.0004,60]
[395014002,1764329457247,-200.0,0.0004,120]
[395014003,1764329457255,-2000.0,0.0004,120]
[395014004,1764329457264,-3575.79,0.0004,2]
[395014005,1764329457273,-500.0,0.0004,30]
[395014006,1764329457283,-500.0,0.0004,30]
[395014007,1764329457293,-500.0,0.0004,30]
[395014008,1764329457302,-500.0,0.0004,30]
[395014009,1764329457311,-311.76054741,0.0004,30]
[395014010,1764329457321,-300.0,0.0004,2]
[395014011,1764329457330,-774.85,0.0004,2]
[395014012,1764329457339,-277.28154434,0.0004,120]
[395014013,1764329457350,-1000.0,0.0004,60]
[395014014,1764329457360,-207.36177663,0.00040012,120]
[395014015,1764329457370,-154.12,0.00040016,120]
[395014016,1764329457380,-150.15,0.00040016,120]
[395014017,1764329457389,-300.0,0.00040053,2]
[395014018,1764329457398,-150.0,0.0004007,120]
[395014019,1764329457407,-150.0,0.00040077,7]
[395014020,1764329457416,-248.71395,0.00040088,30]
[395014021,1764329457426,-150.0,0.00040097,7]
[395014022,1764329457436,-154.12,0.00040116,120]
[395014023,1764329457448,-150.15,0.00040116,120]
[395014024,1764329457459,-500.0,0.00040137,30]
[395014025,1764329457468,-150.0,0.00040156,7]
[395014026,1764329457478,-300.0,0.00040179,2]
[395014027,1764329457487,-150.0,0.00040215,7]
[395014028,1764329457497,-154.12,0.00040216,120]
[395014029,1764329457507,-150.15,0.00040216,120]
[395014030,1764329457516,-300.0,0.00040256,2]
[395014031,1764329457525,-199.0,0.00040273,15]
[395014032,1764329457535,-3575.79,0.00040273,2]
[395014033,1764329457544,-300.0,0.00040273,2]
[395014034,1764329457554,-774.85,0.00040273,2]
[395014035,1764329457569,-300.0,0.00040279,2]